Cogmind - Beta 16.1 @@@ ROGUE MODE // 2026.02.21 @ 13:07:03 Player: Bort Result: Destroyed by as-60292 with Assembled Heavy Rifle Performance ------------- Evolutions (0) 0 Regions Visited (4) 800 Robots Destroyed (5) 25 Value Destroyed (111) 111 Prototype IDs (0) 0 Alien Tech Used (0) 0 Bonus (0) 0 TOTAL SCORE: 936 Bonus ------- None Cogmind --------- Core Integrity 0/250 Matter 292/300 Energy 99/100 System Corruption 5% Temperature Cool (0) Movement Rolling (90) Location -9/Mines Parts ------- > --- POWER (1) -------- (None) > --- PROPULSION (2) --- Armored Wheel > --- UTILITY (2) ------ Cooling System Signal Interpreter > --- WEAPON (2) ------- Particle Gun > --- INVENTORY (5) ---- Small Storage Unit Peak State ------------ > --- POWER ------------ Ion Engine > --- PROPULSION ------- Armored Wheel Armored Wheel > --- UTILITY ---------- Cooling System Signal Interpreter > --- WEAPON ----------- Particle Cannon Particle Cannon > --- INVENTORY -------- Small Storage Unit [Rating: 12] Favorites ----------- Power Ion Engine Engine Ion Engine Propulsion Armored Wheel Treads Light Treads Wheel Armored Wheel Utility Signal Interpreter Device Cooling System Processor Signal Interpreter Weapon Particle Cannon Energy Gun Medium Laser Energy Cannon Particle Cannon Ballistic Gun Assault Rifle Special Weapon Mining Laser Build | -11 -10 -10 -10 -9 ------- Run | Yrd Mat Min Exi Min Slots Evolved . | . . . . . Power . | . . . . . Propulsion . | . . . . . Utility . | . . . . . Weapon . | . . . . . Parts Attached 14 | 5 6 1 . 2 Power 2 | 1 . . . 1 Engine 2 | 1 . . . 1 Core . | . . . . . Reactor . | . . . . . Propulsion 4 | 2 2 . . . Treads 2 | 2 . . . . Leg . | . . . . . Wheel 2 | . 2 . . . Hover . | . . . . . Flight . | . . . . . Utility 2 | . 2 . . . Device 1 | . 1 . . . Storage . | . . . . . Processor 1 | . 1 . . . Hackware . | . . . . . Protection . | . . . . . Artifact . | . . . . . Weapon 6 | 2 2 1 . 1 Energy Gun 2 | 1 . . . 1 Energy Cannon 2 | . 2 . . . Ballistic Gun 1 | 1 . . . . Ballistic Cannon . | . . . . . Launcher . | . . . . . Special Weapon 1 | . . 1 . . Impact Weapon . | . . . . . Slashing Weapon . | . . . . . Piercing Weapon . | . . . . . Special Melee Weapon . | . . . . . Unidentified Prototypes . | . . . . . Parts Lost 4 | . . . . 4 Power 1 | . . . . 1 Propulsion 1 | . . . . 1 Utility . | . . . . . Weapon 2 | . . . . 2 Highest Loss Streak 4 | . . . . 4 To Critical Strikes . | . . . . . Average Backups 2 | . 1 2 3 2 Power . | . . . . . Propulsion . | . . . . . Utility . | . 1 1 1 1 Weapon 1 | . . 1 2 1 Tool/Special . | . . . . . Unused Backups 3 | . . . 2 1 Power 2 | . . . 2 . Propulsion . | . . . . . Utility 1 | . . . . 1 Weapon . | . . . . . Tool/Special . | . . . . . Average Slot Usage (%) 97 | . 87 100 99 95 Engine 13 | . 14 14 13 13 Treads 1 | . 5 . . . Wheel 26 | . 22 28 28 25 Device 12 | . 3 14 14 14 Processor 13 | . 12 14 14 14 Energy Cannon 17 | . 21 21 14 21 Special Weapon 8 | . . 7 14 2 Peak Build Rating 12 | 5 12 12 12 12 Average Rating 10 | 3 9 11 10 11 On Entrance 7 | . 5 12 11 11 Avg Prop Armor Cover (%) . | . . . . . Naked Turns . | . . . . . Heaviest Build 15 | 9 15 15 12 15 Greatest Support 40 | 40 40 24 24 24 Greatest Overweight (x) . | . . . . . Average Overweight (x) . | . . . . . Largest Inventory Capacity 5 | 5 5 5 5 5 Average Capacity 5 | 5 5 5 5 5 Most Carried 5 | 2 3 3 5 4 Average Carried 2 | . 1 2 3 2 Final Capacity 5 | 5 5 5 5 5 Final Carried 3 | 1 1 3 3 1 Class Distribution -------------------- 100% | Mutant Dominant Class ---------------- Mutant | -10/Materials Mutant | -10/Mines Mutant | -10/Exiles Mutant | -9/Mines Resources | -11 -10 -10 -10 -9 ----------- Run | Yrd Mat Min Exi Min Matter Collected 350 | 215 . 105 . 30 Remotely . | . . . . . Salvage Created 202 | . . 97 . 105 Parts 9 | . . 3 . 6 Haulers Intercepted . | . . . . . Recyclers Shooed . | . . . . . Parts Field Recycled . | . . . . . Retrieved Matter . | . . . . . Parts Self-Destructed . | . . . . . Prevented . | . . . . . Parts Restored . | . . . . . Kills | -11 -10 -10 -10 -9 ------- Run | Yrd Mat Min Exi Min Combat Hostiles Destroyed 9 | . . 2 . 7 Cannons 9 | . . 2 . 7 Classes Destroyed 3 | . . 1 . 2 Swarmer 3 | . . . . 3 Grunt 2 | . . 2 . . Assembled 4 | . . . . 4 Best Kill Streak 4 | . . 2 . 4 Combat Bots Only 4 | . . 2 . 4 Max Kills in Single Turn 1 | . . 1 . 1 Gunslinging . | . . . . . Exploded . | . . . . . Melee . | . . . . . Uniques/NPCs Destroyed . | . . . . . Combat | -11 -10 -10 -10 -9 -------- Run | Yrd Mat Min Exi Min Hostile Shots Fired 94 | . . 11 . 83 Missed 27 | . . 1 . 26 Hits 67 | . . 10 . 57 Melee 4 | . . . . 4 Projectile 63 | . . 10 . 53 Critical Strikes 2 | . . . . 2 Damage Taken 822 | . . 128 . 694 Core 253 | . . 45 . 208 Absorbed by Shields . | . . . . . Core Remaining (%) 100 | 100 . . . . Volleys Fired 26 | . 2 5 . 19 Largest 2 | . 2 2 . 2 Hottest 136 | . 136 136 . 136 Shots Fired 46 | . 4 10 . 32 Gun 4 | . . . . 4 Cannon 42 | . 4 10 . 28 Launcher . | . . . . . Special . | . . . . . Kinetic . | . . . . . Thermal 46 | . 4 10 . 32 Explosive . | . . . . . Electromagnetic . | . . . . . Robot Hit Streak 5 | . 1 3 . 5 Robot Miss Streak 3 | . 3 1 . 3 Penetration Max . | . . . . . Secondary Targets . | . . . . . Shots Hit Robots 21 | . 1 6 . 14 Core Hits 10 | . . 3 . 7 Critical Kills . | . . . . . Critical Parts Destroyed . | . . . . . Critical Strikes . | . . . . . Melee Attacks . | . . . . . Impact . | . . . . . Slashing . | . . . . . Piercing . | . . . . . Sneak Attacks . | . . . . . Combat Hostiles . | . . . . . Follow-up Attacks . | . . . . . Damage Inflicted 519 | . 20 182 . 317 Guns 31 | . . . . 31 Cannons 488 | . 20 182 . 286 Explosions . | . . . . . Melee . | . . . . . Ramming . | . . . . . Kinetic . | . . . . . Thermal 519 | . 20 182 . 317 Explosive . | . . . . . Electromagnetic . | . . . . . Impact . | . . . . . Slashing . | . . . . . Piercing . | . . . . . Highest Corruption 5 | . . . . 5 Average Corruption 5 | . . . . 5 Corruption Purged . | . . . . . Corruption Blocked . | . . . . . Effects 1 | . . . . 1 Matter Fused 1 | . . . . 1 Overload Shots . | . . . . . Overflow Damage 1 | . . . . 1 Projectiles 1 | . . . . 1 Explosions . | . . . . . Melee . | . . . . . Knockbacks . | . . . . . Impact . | . . . . . Kinetic . | . . . . . Secondary . | . . . . . Self-Inflicted Damage . | . . . . . Shots . | . . . . . Rammed . | . . . . . Targets Rammed . | . . . . . Kicked . | . . . . . Crushed . | . . . . . Highest Temperature 117 | . 9 117 . 69 Average Temperature 38 | . 6 67 . 31 Received Heat Transfer 72 | . . 72 . . Siege Activations . | . . . . . Martial Activations . | . . . . . Shielding Activations . | . . . . . Robots Disrupted . | . . . . . Combat Hostiles . | . . . . . Robots Corrupted . | . . . . . Combat Hostiles . | . . . . . Parts Fried . | . . . . . Impact Corruptions . | . . . . . Robots Melted . | . . . . . Combat Hostiles . | . . . . . Parts Melted 2 | . . 1 . 1 Heat Transferred 962 | . 37 333 . 592 Parts Sabotaged . | . . . . . Parts Stolen . | . . . . . Parts Stripped . | . . . . . Power Chain Reactions . | . . . . . Alert | -11 -10 -10 -10 -9 ------- Run | Yrd Mat Min Exi Min Maximum Alert Level . | . . . . . Low Security (%) 100 | 100 100 100 . 100 Level 1 . | . . . . . Level 2 . | . . . . . Level 3 . | . . . . . Level 4 . | . . . . . Level 5 . | . . . . . High Security . | . . . . . Max Security . | . . . . . Peak Influence 70 | . 4 40 . 70 Initial . | . . . . . Average 7 | . . 5 . 29 Influence Increases 124 | . 4 50 . 70 Destroy 0b10 Robot/C 100 | . . 40 . 60 Destroy Leader 20 | . . 10 . 10 Successful Hack 4 | . 4 . . . Influence Decreases 124 | . 4 50 . 70 Time Decay 104 | . 4 50 . 50 Lost Part 20 | . . . . 20 Squads Dispatched . | . . . . . Investigation . | . . . . . Extermination . | . . . . . Reinforcement . | . . . . . Assault . | . . . . . Garrison . | . . . . . Intercept . | . . . . . Searches Triggered . | . . . . . Construction Impeded . | . . . . . Haulers Reinforced . | . . . . . Active Scanning Responses . | . . . . . Cargo Convoy Interrupts . | . . . . . Stealth | -11 -10 -10 -10 -9 --------- Run | Yrd Mat Min Exi Min Distress Signals . | . . . . . Communications Jammed . | . . . . . Distress Signals . | . . . . . Times Spotted 29 | . 3 2 . 24 Peak Tracking Total 20 | . 2 2 . 20 Tactical Retreats 2 | . . . . 2 Traps | -11 -10 -10 -10 -9 ------- Run | Yrd Mat Min Exi Min Traps Triggered . | . . . . . Indirectly . | . . . . . Trap Hack Attempts . | . . . . . Triggered . | . . . . . Disarmed . | . . . . . Reprogrammed . | . . . . . Reused . | . . . . . Traps Extracted . | . . . . . Installed . | . . . . . Triggered . | . . . . . Machines | -11 -10 -10 -10 -9 ---------- Run | Yrd Mat Min Exi Min Machines Disabled . | . . . . . Max in Single Turn . | . . . . . Machines Repaired . | . . . . . Machines Dismantled . | . . . . . Machines Sabotaged . | . . . . . Overloaded Fab Kills . | . . . . . Hacking | -11 -10 -10 -10 -9 --------- Run | Yrd Mat Min Exi Min Machines Accessed 5 | . 1 . 4 . Terminals 1 | . 1 . . . Fabricators . | . . . . . Repair Stations . | . . . . . Recycling Units . | . . . . . Scanalyzers . | . . . . . Garrison Access . | . . . . . Total Hacks 50 | . 1 . 49 . Successful 50 | . 1 . 49 . Failed . | . . . . . Catastrophic . | . . . . . Database Lockouts . | . . . . . Manual . | . . . . . Terminals 1 | . 1 . . . Fabricators . | . . . . . Repair Stations . | . . . . . Recycling Units . | . . . . . Scanalyzers . | . . . . . Garrison Access . | . . . . . Terminal Hacks 50 | . 1 . 49 . Record 49 | . . . 49 . Dispatch Records 1 | . 1 . . . Fabricator Hacks . | . . . . . Repair Station Hacks . | . . . . . Recycling Unit Hacks . | . . . . . Scanalyzer . | . . . . . Garrison Access Hacks . | . . . . . Unauthorized Hacks . | . . . . . Terminals . | . . . . . Fabricators . | . . . . . Repair Stations . | . . . . . Recycling Units . | . . . . . Scanalyzers . | . . . . . Garrison Access . | . . . . . Data Cores Recovered . | . . . . . Used . | . . . . . Hacking Detections . | . . . . . Full Trace Events . | . . . . . Feedback Events . | . . . . . Feedback Blocked . | . . . . . Robot Schematics Acquired . | . . . . . Robots Built . | . . . . . Authchips . | . . . . . Time . | . . . . . Total Robot Build Rating . | . . . . . Part Schematics Acquired . | . . . . . Parts Built . | . . . . . Authchips . | . . . . . Time . | . . . . . Total Part Build Rating . | . . . . . Part Studies Acquired . | . . . . . Parts Repaired . | . . . . . Time . | . . . . . Parts Recycled . | . . . . . Recycled Matter . | . . . . . Retrieved Matter . | . . . . . Retrieved Components . | . . . . . Parts Scanalyzed . | . . . . . Part Schematics Acquired . | . . . . . Parts Damaged . | . . . . . Bothacking | -11 -10 -10 -10 -9 ------------ Run | Yrd Mat Min Exi Min Used RIF Installer . | . . . . . Robots Hacked . | . . . . . Non-combat . | . . . . . Combat . | . . . . . Robot Hacks Applied . | . . . . . Relay Couplers Released . | . . . . . Fabnet Peak Effective % . | . . . . . Robots Rewired . | . . . . . Allies Hacked . | . . . . . Hacks Repelled . | . . . . . Allies | -11 -10 -10 -10 -9 -------- Run | Yrd Mat Min Exi Min Total Allies 1 | . . 1 . . Largest Group 1 | . . 1 . . Highest-Rated Group 31 | . . 31 . . Highest-Rated Ally 31 | . . 31 . . Total Orders . | . . . . . Ally Attacks . | . . . . . Total Damage . | . . . . . Kills . | . . . . . Allies Corrupted . | . . . . . Allies Melted . | . . . . . Intel | -11 -10 -10 -10 -9 ------- Run | Yrd Mat Min Exi Min Active Infowar (turns) . | . . . . . Robot Analysis Total . | . . . . . Derelict Logs Recovered . | . . . . . Drone Launches . | . . . . . Drone Recoveries . | . . . . . Exploration | -11 -10 -10 -10 -9 ------------- Run | Yrd Mat Min Exi Min Turns Passed 1631 | 56 278 366 784 147 Spaces Moved 1590 | 35 239 352 864 100 Core 9 | 9 . . . . Treads 54 | 26 28 . . . Legs . | . . . . . Wheels 1527 | . 211 352 864 100 Hover . | . . . . . Flight . | . . . . . Fastest Speed 50 | 50 90 90 90 90 Average Speed 92 | 131 98 90 90 90 Slowest Speed 160 | 160 160 90 90 90 Overloaded Moves . | . . . . . Propulsion Burnouts . | . . . . . Robots Hopped . | . . . . . Potential Cave-ins . | . . . . . Cave-ins Triggered . | . . . . . Exploration Rate (%) 41 | 3 29 55 93 28 Regions Visited 4 Branch Regions 3 Pre-discovered Areas 1 | . . . 1 . Known Exits Taken 3 | . 1 1 1 . Unknown Exits Taken 1 | 1 . . . . Scrap Searched 1 | . . 1 . . Spaces Dug . | . . . . . Terrain Destroyed . | . . . . . Melee . | . . . . . Projectile . | . . . . . AOE . | . . . . . Terrain Rammed . | . . . . . Walls Destroyed . | . . . . . Machines Disabled . | . . . . . Actions | -11 -10 -10 -10 -9 --------- Run | Yrd Mat Min Exi Min Total 1712 | 45 279 390 873 125 Wait 55 | . 23 31 1 . Move 1586 | 34 238 351 863 100 Hop . | . . . . . Pick Up 18 | 6 6 2 3 1 Fast Attach . | . . . . . Attach 11 | 5 4 . 1 1 Detach 1 | . . . 1 . Swap 5 | . 2 1 . 2 Drop 9 | . 4 . 3 2 Fire 26 | . 2 5 . 19 Melee . | . . . . . Ram . | . . . . . Kick . | . . . . . Crush . | . . . . . Escape Stasis . | . . . . . Rewire 1 | . . . 1 . Trap . | . . . . . Miscellaneous . | . . . . . Route ------- -11/Scrapyard -10/Materials -10/Mines (discovered 2 exits: *Mat / *Exi) -10/Exiles (discovered 2 exits: *Min x2) -9/Mines History --------- Turn | Location | Event 6 | -11/Scrapyard | Discovered new exit (range 14) 57 | -11/Scrapyard | Entered Materials 302 | -10/Materials | Build established: Mutant 316 | -10/Materials | Discovered new exit (range 15) 333 | -10/Materials | Identified exit to Mines 335 | -10/Materials | Entered Mines 509 | -10/Mines | Received a Mining Laser from a helpful Derelict 621 | -10/Mines | Deemed a non-threat by the Exiles lab entrance 621 | -10/Mines | Discovered new exit (range 5) 624 | -10/Mines | Identified exit to Exiles 652 | -10/Mines | Discovered new exit (range 10) 666 | -10/Mines | Identified exit to Materials 701 | -10/Mines | Entered Exiles 725 | -10/Exiles | Discovered new exit (range 14) 734 | -10/Exiles | Identified exit to Mines 753 | -10/Exiles | Met 8R-AWN 770 | -10/Exiles | Met EX-HEX 809 | -10/Exiles | Met EX-DEC 834 | -10/Exiles | Learned location of Zion (-6) 881 | -10/Exiles | Discovered exit to Mines (range 14) 955 | -10/Exiles | Visited The Gauntlet 1102 | -10/Exiles | Met EX-BIN 1485 | -10/Exiles | Entered Mines 1579 | -9/Mines | Assembled infested the area 1584 | -9/Mines | Assisted by a Guerilla fighting off Assembled 1602 | -9/Mines | Core integrity fell below 50% 1621 | -9/Mines | Core integrity fell below 20% 1632 | -9/Mines | Destroyed by as-60292 with Assembled Heavy Rifle Last Messages --------------- 01543_ R-06 Scavenger collects Lgt. Assault Rifle. 01551_ R-06 Scavenger collects Ion Engine. 01579_ ALERT: Infestation in the mines, dispatching Demolisher response squad. [Achievement: Hunted] 01591_ as-90738 destroyed. 01593_ as-23839 destroyed. 01597_ Particle Cannon destroyed. 01597_ System corrupted by crushing effect (+5). 01597_ Knocked back. 01599_ as-22763 destroyed. 01600_ Arm. Wheel destroyed. 01601_ Knocked back. [Achievement: There's More Where That Came From] 01611_ as-89039 destroyed. 01613_ System corrupted: Matter fused (-8). 01620_ Lgt. Ion Engine destroyed. 01630_ U-05 Engineer lays Concrete. 01631_ Particle Cannon destroyed. Map ----- +----------------------------------------------------+ | ???????????????????????????????????????????? | | ???????????????????????????????????????????? | | ????????????????????????????????????? ?????? | | ????????????????????????????????????? ?????? | | ????????????????####????????????????# ?????? | | ???????????????## ##?????????????## ?????? | | ??????????????## #????????????? ?????? | | ??###???????### #????????????? ?????? | | ?## #?????## #????????????? ??????? | | ?# #????# #????????????? ??????? | | ?# #???# #??????????????# ??????? | | ??# #### #?????????????## ??????? | | ???# ##* ##???????????## ??????? | | ????# = % ##??????????# ??????? | | ?????# [% = #?????????## #??????? | | ?????## * [ #????????## %%######?? | | ??????# | ### #????????# % #?? | | ?????## ######????????# % #?? | | ##### ##???????????# #### #?? | | #???????????## #???# #?? | | $ #??####??????###????# #?? | | ### ## d ### ##????????????# #?? | | ??#??## # #??????????### #?? | | ??????# d #???????#### #?? | | ??????# u ######### #?? | | ??????## % @ a a #?? | | ???????## aa #?? | | ????????# ## ###### """ #?? | | ????????# ##### ##????## """ ##?? | | ????????# ##???????###??????# """ #??? | | ????????# ##?????????????????## """ ##?? | | ????????## #???????????????????## ##? | | ?????????## #????????????????????## #? | | ??????????# ??????????????????????# #? | | ??????????# ??????????????????????# #? | | ?????????? ??????????????????????# #? | | ?????????? ??????????????????????## #? | | ??????????###???????????????????????### ##? | | ??????????????????????????????????????####?? | | ???????????????????????????????????????????? | | ???????????????????????????????????????????? | | ???????????????????????????????????????????? | | ???????????????????????????????????????????? | | ???????????????????????????????????????????? | | ???????????????????????????????????????????? | | ???????????????????????????????????????????? | | ???????????????????????????????????????????? | | ???????????????????????????????????????????? | | ???????????????????????????????????????????? | | ???????????????????????????????????????????? | +----------------------------------------------------+ Best States ------------- Heat Dissipation 47 Energy Generation 10 Energy Capacity 250 Matter Stores 300 Matter Capacity 300 Sight Range 16 Terrain Scan Density 10 Evasion (%) 42 Recoil Reduction 2 Item Schematics ----------------- None Robot Schematics ------------------ None Fabricated ------------ Nothing Repaired ---------- Nothing Studied --------- None Alien Tech Used ----------------- None Achievements -------------- Hunted There's More Where That Came From Challenges ------------ None Game ------ Seed WeaponVariableHumpback Manual? 0 Play Time 00:27:33 Cumulative 5.7 hours Start 2026.02.21 @ 12:32:23 End 2026.02.21 @ 13:07:03 Sessions 1 Manual Loads 0 Difficulty Rogue Special Mode None Game No. 17 Rogue 17 Adventurer 0 Explorer 0 Win Type - Total 0 Types 0/0/0/0/0/0/0/0/0/0 Lore% 8 Gallery% 11 Achievement% 7 Wizard Run 0 Options --------- Layout 1 ASCII 0 Keyboard 0 Movement Numpad Keybinds 0 Fullscreen 1 Font 36/Cog Map View 55x38 Zoom Use 0% Tactical HUD 1 Map Filters NONE Filters NONE Steam 1 RUN: 051599f1-1283-4ec2-bfd9-77556c6124b0